Cogmind - Beta 17 @@@ ROGUE MODE // 2026.07.15 @ 19:54:45 Player: Hadza Result: Destroyed by N0-JN6(R) with Subdweller Machine Gun Performance ------------- Evolutions (0) 0 Regions Visited (1) 200 Robots Destroyed (15) 75 Value Destroyed (400) 400 Prototype IDs (0) 0 Alien Tech Used (0) 0 Bonus (0) 0 TOTAL SCORE: 675 Bonus ------- None Cogmind --------- Core Integrity 0/250 Matter 175/300 Energy 238/250 System Corruption 0% Temperature Cool (0) Movement Core (200) Ox3 Location -10/Materials Parts ------- > --- POWER (1) -------- Ion Engine > --- PROPULSION (2) --- (None) > --- UTILITY (2) ------ Small Storage Unit > --- WEAPON (2) ------- (None) > --- INVENTORY (8) ---- Improved Terrain Scanner Hacking Suite Medium Laser Medium Laser Peak State ------------ > --- POWER ------------ Light Ion Engine > --- PROPULSION ------- Light Treads Light Treads > --- UTILITY ---------- Small Storage Unit Improved Terrain Scanner > --- WEAPON ----------- Assault Rifle Assault Rifle > --- INVENTORY -------- Ion Engine [Rating: 9] Favorites ----------- Power Light Ion Engine Engine Light Ion Engine Propulsion Light Treads Treads Light Treads Utility Small Storage Unit Device Improved Terrain Scanner Storage Small Storage Unit Weapon Assault Rifle Energy Gun Medium Laser Ballistic Gun Assault Rifle Build | -11 -10 ------- Run | Yrd Mat Slots Evolved . | . . Power . | . . Propulsion . | . . Utility . | . . Weapon . | . . Parts Attached 11 | 7 4 Power 2 | 1 1 Engine 2 | 1 1 Core . | . . Reactor . | . . Propulsion 2 | 2 . Treads 2 | 2 . Leg . | . . Wheel . | . . Hover . | . . Flight . | . . Utility 2 | 2 . Device 1 | 1 . Storage 1 | 1 . Processor . | . . Hackware . | . . Protection . | . . Artifact . | . . Weapon 5 | 2 3 Energy Gun 2 | . 2 Energy Cannon . | . . Ballistic Gun 3 | 2 1 Ballistic Cannon . | . . Launcher . | . . Special Weapon . | . . Impact Weapon . | . . Slashing Weapon . | . . Piercing Weapon . | . . Special Melee Weapon . | . . Unidentified Prototypes . | . . Parts Lost 6 | . 6 Power 1 | . 1 Propulsion 2 | . 2 Utility . | . . Weapon 3 | . 3 Highest Loss Streak 4 | . 4 To Critical Strikes . | . . Average Backups 2 | 1 2 Power . | 1 . Propulsion . | . . Utility . | . . Weapon 1 | . 2 Tool/Special . | . . Unused Backups 1 | . 1 Power . | . . Propulsion . | . . Utility 1 | . 1 Weapon . | . . Tool/Special . | . . Average Slot Usage (%) 98 | . 98 Engine 14 | . 14 Treads 27 | . 27 Device 14 | . 14 Storage 14 | . 14 Energy Gun 1 | . 1 Ballistic Gun 26 | . 26 Peak Build Rating 9 | 9 9 Average Rating 8 | 5 8 On Entrance 4 | . 9 Avg Prop Armor Cover (%) . | . . Naked Turns . | . . Heaviest Build 15 | 13 15 Greatest Support 40 | 40 40 Greatest Overweight (x) 4 | . 4 Average Overweight (x) . | . . Largest Inventory Capacity 8 | 8 8 Average Capacity 7 | 7 8 Most Carried 5 | 5 4 Average Carried 2 | 1 2 Final Capacity 8 | 8 8 Final Carried 4 | 1 4 Class Distribution -------------------- 100% | Mutant Dominant Class ---------------- Mutant | -10/Materials Resources | -11 -10 ----------- Run | Yrd Mat Matter Collected 459 | 248 211 Remotely . | . . Salvage Created 539 | 129 410 Parts 33 | 8 25 Haulers Intercepted . | . . Recyclers Shooed . | . . Parts Field Recycled . | . . Retrieved Matter . | . . Parts Self-Destructed . | . . Prevented . | . . Parts Restored . | . . Kills | -11 -10 ------- Run | Yrd Mat Combat Hostiles Destroyed 9 | . 9 Guns 9 | . 9 Classes Destroyed 7 | 3 4 Worker 1 | 1 . Tunneler 1 | 1 . Recycler 1 | 1 . Operator 2 | . 2 Watcher 1 | . 1 Grunt 8 | . 8 Subdweller 1 | . 1 Best Kill Streak 6 | 3 6 Combat Bots Only 6 | . 6 Max Kills in Single Turn 1 | 1 1 Gunslinging . | . . Exploded . | . . Melee . | . . Uniques/NPCs Destroyed . | . . Combat | -11 -10 -------- Run | Yrd Mat Hostile Shots Fired 83 | . 83 Missed 25 | . 25 Hits 58 | . 58 Projectile 58 | . 58 Critical Strikes 1 | . 1 Damage Taken 961 | . 961 Core 251 | . 251 Absorbed by Shields . | . . Core Remaining (%) 100 | 100 . Volleys Fired 50 | 6 44 Largest 2 | 2 2 Hottest 70 | 40 70 Shots Fired 99 | 12 87 Gun 99 | 12 87 Cannon . | . . Launcher . | . . Special . | . . Kinetic 98 | 12 86 Thermal 1 | . 1 Explosive . | . . Electromagnetic . | . . Robot Hit Streak 8 | 3 8 Robot Miss Streak 3 | 3 2 Penetration Max . | . . Secondary Targets 3 | . 3 Max Gunslinging Chain 1 | . 1 Shots Hit Robots 64 | 6 58 Core Hits 28 | 4 24 Critical Kills . | . . Critical Parts Destroyed 1 | . 1 Critical Strikes 1 | . 1 Destroy 1 | . 1 Melee Attacks . | . . Impact . | . . Slashing . | . . Piercing . | . . Sneak Attacks . | . . Combat Hostiles . | . . Follow-up Attacks . | . . Damage Inflicted 796 | 71 725 Guns 796 | 71 725 Cannons . | . . Explosions . | . . Melee . | . . Ramming . | . . Kinetic 783 | 71 712 Thermal 13 | . 13 Explosive . | . . Electromagnetic . | . . Impact . | . . Slashing . | . . Piercing . | . . Highest Corruption . | . . Average Corruption . | . . Corruption Purged . | . . Corruption Blocked . | . . Overload Shots . | . . Overflow Damage . | . . Projectiles . | . . Explosions . | . . Melee . | . . Knockbacks . | . . Impact . | . . Kinetic . | . . Secondary . | . . Self-Inflicted Damage . | . . Shots . | . . Rammed . | . . Targets Rammed . | . . Kicked . | . . Crushed . | . . Highest Temperature 27 | . 27 Average Temperature 7 | . 7 Received Heat Transfer 384 | . 384 Siege Activations . | . . Martial Activations . | . . Shielding Activations . | . . Robots Disrupted . | . . Combat Hostiles . | . . Robots Corrupted . | . . Combat Hostiles . | . . Parts Fried . | . . Impact Corruptions . | . . Robots Melted . | . . Combat Hostiles . | . . Parts Melted . | . . Heat Transferred 37 | . 37 Parts Sabotaged . | . . Parts Stolen . | . . Parts Stripped . | . . Power Chain Reactions . | . . Alert | -11 -10 ------- Run | Yrd Mat Maximum Alert Level . | . . Low Security (%) 100 | 100 100 Level 1 . | . . Level 2 . | . . Level 3 . | . . Level 4 . | . . Level 5 . | . . High Security . | . . Max Security . | . . Peak Influence 130 | 5 130 Initial 3 | . 3 Average 34 | . 40 Influence Increases 247 | 15 232 Destroy 0b10 Robot/C 160 | . 160 Destroy 0b10 Robot/NC 30 | 15 15 Destroy Leader 52 | . 52 Successful Hack 5 | . 5 Influence Decreases 247 | 10 237 Entered New Map 2 | . 2 Time Decay 185 | 10 175 Lost Part 60 | . 60 Squads Dispatched 3 | . 3 Investigation 1 | . 1 Extermination . | . . Reinforcement 2 | . 2 Assault . | . . Garrison . | . . Intercept . | . . Searches Triggered . | . . Construction Impeded . | . . Haulers Reinforced . | . . Active Scanning Responses . | . . Cargo Convoy Interrupts . | . . Stealth | -11 -10 --------- Run | Yrd Mat Distress Signals 1 | . 1 Communications Jammed . | . . Distress Signals . | . . Times Spotted 18 | . 18 Peak Tracking Total 4 | . 4 Tactical Retreats . | . . Traps | -11 -10 ------- Run | Yrd Mat Traps Triggered 1 | . 1 Indirectly . | . . Trap Hack Attempts . | . . Triggered . | . . Disarmed . | . . Reprogrammed . | . . Reused . | . . Traps Extracted . | . . Installed . | . . Triggered . | . . Machines | -11 -10 ---------- Run | Yrd Mat Machines Disabled . | . . Max in Single Turn . | . . Machines Repaired . | . . Machines Dismantled . | . . Machines Sabotaged . | . . Overloaded Fab Kills . | . . Hacking | -11 -10 --------- Run | Yrd Mat Machines Accessed 2 | . 2 Terminals 2 | . 2 Fabricators . | . . Repair Stations . | . . Recycling Units . | . . Scanalyzers . | . . Garrison Access . | . . Total Hacks 4 | . 4 Successful 2 | . 2 Failed 2 | . 2 Catastrophic 1 | . 1 Database Lockouts . | . . Manual 4 | . 4 Terminals 4 | . 4 Fabricators . | . . Repair Stations . | . . Recycling Units . | . . Scanalyzers . | . . Garrison Access . | . . Terminal Hacks 2 | . 2 Branch Access Points 1 | . 1 Terminal Index 1 | . 1 Fabricator Hacks . | . . Repair Station Hacks . | . . Recycling Unit Hacks . | . . Scanalyzer . | . . Garrison Access Hacks . | . . Unauthorized Hacks . | . . Terminals . | . . Fabricators . | . . Repair Stations . | . . Recycling Units . | . . Scanalyzers . | . . Garrison Access . | . . Data Cores Recovered . | . . Used . | . . Hacking Detections 1 | . 1 Full Trace Events 1 | . 1 Feedback Events . | . . Feedback Blocked . | . . Robot Schematics Acquired . | . . Robots Built . | . . Authchips . | . . Time . | . . Total Robot Build Rating . | . . Part Schematics Acquired . | . . Parts Built . | . . Authchips . | . . Time . | . . Total Part Build Rating . | . . Part Studies Acquired . | . . Parts Repaired . | . . Time . | . . Parts Recycled . | . . Recycled Matter . | . . Retrieved Matter . | . . Retrieved Components . | . . Parts Scanalyzed . | . . Part Schematics Acquired . | . . Parts Damaged . | . . Bothacking | -11 -10 ------------ Run | Yrd Mat Used RIF Installer . | . . Robots Hacked . | . . Non-combat . | . . Combat . | . . Robot Hacks Applied . | . . Relay Couplers Released . | . . Fabnet Peak Effective % . | . . Robots Rewired . | . . Allies Hacked . | . . Hacks Repelled . | . . Allies | -11 -10 -------- Run | Yrd Mat Total Allies . | . . Largest Group . | . . Highest-Rated Group . | . . Highest-Rated Ally . | . . Total Orders . | . . Ally Attacks . | . . Total Damage . | . . Kills . | . . Allies Corrupted . | . . Allies Melted . | . . Intel | -11 -10 ------- Run | Yrd Mat Active Infowar (turns) 571 | 11 560 Terrain 571 | 11 560 Robot Analysis Total . | . . Derelict Logs Recovered . | . . Drone Launches . | . . Drone Recoveries . | . . Exploration | -11 -10 ------------- Run | Yrd Mat Turns Passed 667 | 106 561 Spaces Moved 301 | 62 239 Core 23 | 22 1 Treads 278 | 40 238 Legs . | . . Wheels . | . . Hover . | . . Flight . | . . Fastest Speed 50 | 50 160 Average Speed 152 | 120 160 Slowest Speed 250 | 160 250 Overloaded Moves . | . . Propulsion Burnouts . | . . Robots Hopped . | . . Potential Cave-ins . | . . Cave-ins Triggered . | . . Exploration Rate (%) 18 | 5 32 Regions Visited 1 Branch Regions . Pre-discovered Areas . | . . Known Exits Taken . | . . Unknown Exits Taken 1 | 1 . Scrap Searched . | . . Spaces Dug . | . . Terrain Destroyed . | . . Melee . | . . Projectile . | . . AOE . | . . Terrain Rammed . | . . Walls Destroyed . | . . Machines Disabled . | . . Actions | -11 -10 --------- Run | Yrd Mat Total 411 | 81 330 Wait 35 | . 35 Move 300 | 61 239 Hop . | . . Pick Up 11 | 7 4 Fast Attach 1 | 1 . Attach 10 | 6 4 Detach 3 | . 3 Swap 1 | . 1 Drop . | . . Fire 50 | 6 44 Melee . | . . Ram . | . . Kick . | . . Crush . | . . Escape Stasis . | . . Rewire . | . . Trap . | . . Miscellaneous . | . . Route ------- -11/Scrapyard -10/Materials (discovered 4 exits: [*Mat] / *Min x2 / [*Sub]) History --------- Turn | Location | Event 7 | -11/Scrapyard | Discovered new exit (range 16) 107 | -11/Scrapyard | Entered Materials 109 | -10/Materials | Identified exit to Mines 307 | -10/Materials | Build established: Mutant 576 | -10/Materials | Discovered new exit (range 14) 606 | -10/Materials | Discovered new exit (range 4) 607 | -10/Materials | Derelicts attacked the area 632 | -10/Materials | Core integrity fell below 50% 643 | -10/Materials | Core integrity fell below 20% 668 | -10/Materials | Destroyed by N0-JN6(R) with Subdweller Machine Gun Last Messages --------------- 00588_ Assault Rifle destroyed. 00590_ T-07 Excavator is excavating. 00600_ G-34 Mercenary destroyed. 00600_ T-07 Excavator is excavating. 00606_ EXIT=FOUND 00607_ ALERT: Derelict incursion detected, rerouting patrols to target area. 00607_ T-07 Excavator is excavating. 00617_ O-16 Technician destroyed. 00622_ Acquired Hacking Suite. 00622_ Lgt. Treads destroyed. 00632_ QC-VZD(R) destroyed. 00632_ Switching to secondary target: N0-JN6(R). 00634_ Assault Rifle destroyed. 00639_ N0-JN6(R) affixes Scrap Shield Fragment to Scrap Shield. 00651_ K-01 Serf collects debris. 00659_ Acquired 47 matter. 00659_ U-05 Engineer builds a Wall. 00664_ Lgt. Treads destroyed. Map ----- +----------------------------------------------------+ | #???# """ """ #????# > #????????????? | | #???# """ """ #????# #???????#????? | | #?#?# """ """ #??### #????????????? | | ##??# #?#???# #?????#???????? | | #???#####+#####??#???# ########?#?????? | | ####### ########## # #???????? | | + #???????? | | " * # """ #???????? | | # """ #???????? | | ######## ########## #?""" #???????? | | ?#?????######## T # # ##??????? | | #??????#??##??# % # #??#####???????? | | ????#???????#?#[[! # #??????????????? | | ?????#???#?#??# !! # #????#?#???????? | | ??#???????????# ! # ##?????##??????? | | ?#?#???#?####?######+## #??????#???????? | | #???????????#????# ##????#??##????? | | ?????????##??#?### #?#????? ??????? | | ?????????????? ?# #????? ????#??? | | ????????#????""??# #?? ?????? ???? | | ?????????????"" ?# #??? ????????#?? | | ????????#?????" # #????? ?????#?? | | ??????????????? + #?#???????"????? | | ?????????????????# #???????"?? ???? | | ??????#????? ????##;^^^^^ #???????? ? ???? | | ?????????? ???????## @###+####+###???? | | ???????????????? ??# "#??## | | ?????????#?????????# R #??#?? | | ??????????? ?####??# R #?#?#? | | ????????????? % w #### ###*### #??#?# | | ??????????? ##""T""###?##+###+### ##???? | | ?????????????#"""""???## # #????? | | ??????????????####?#??## # ###??? | | ??????????????#?????#?## # ###??? | | ?????????????#?#???????# =# #??#?? | | ????????????????#?##???# =%# #??#?? | | ????????????????????##?# " #????? | | ?????????????????#?????# %# #????? | | ???????????????? ????#?# !*+ #????? | | ???????????????? ??????# # #????# | | ?????????????? ???#????########## ####X? | | ???????????????????#?#??????#??## # #? | | ??????????????????????????#???### # #? | | ???????????????????#????????????# <# | | ???????????????????????????##???#|! # ## | | ???????????????????????## #######%*|# ###? | | ??????????????????????# =% "##??? | | ???????????????????#??# ! T#???# | | ??????????????????????# =%* "#???? | | ??????????????????????#+#### ##?#?? | +----------------------------------------------------+ Best States ------------- Heat Dissipation 25 Energy Generation 10 Energy Capacity 250 Matter Stores 254 Matter Capacity 300 Sight Range 16 Terrain Scan Range 16 Terrain Scan Density 10 Evasion (%) 50 Recoil Reduction 2 Item Schematics ----------------- None Robot Schematics ------------------ None Fabricated ------------ Nothing Repaired ---------- Nothing Studied --------- None Alien Tech Used ----------------- None Achievements -------------- None Challenges ------------ None Game ------ Seed RecyclingMicrowarpDrillbomb Manual? 0 Play Time 00:05:21 Cumulative 20.0 hours Start 2026.07.15 @ 19:46:11 End 2026.07.15 @ 19:54:45 Sessions 1 Manual Loads 0 Difficulty Rogue Special Mode None Game No. 34 Rogue 34 Adventurer 0 Explorer 0 Win Type - Total 0 Types 0/0/0/0/0/0/0/0/0/0 Lore% 6 Gallery% 17 Achievement% 18 Wizard Run 0 Options --------- Layout 1 ASCII 0 Keyboard 0 Movement Mouse Keybinds 0 Fullscreen 1 Font 24/Smallcaps Map View 50x35 Zoom Use 0% Tactical HUD 1 Map Filters NONE Filters NONE Steam 1 RUN: 44acd13c-a23b-4778-86f3-f8b5213ac35d